Cogmind - Beta 12 @@@ ROGUE MODE // 2023.04.26 @ 23:16:02 Player: Mr Goldstein Result: Destroyed by Y-45 Defender with Heavy Assault Rifle Performance ------------- Evolutions (1) 500 Regions Visited (2) 400 Robots Destroyed (4) 20 Value Destroyed (60) 60 Prototype IDs (0) 0 Alien Tech Used (0) 0 Bonus (0) 0 TOTAL SCORE: 980 Bonus ------- None Cogmind --------- Core Integrity 0/400 Matter 158/300 Energy 96/100 System Corruption 0% Temperature Cool (9) Movement Core (50) Location -9/Materials Parts ------- > --- POWER (1) -------- (None) > --- PROPULSION (2) --- (None) > --- UTILITY (4) ------ (None) > --- WEAPON (2) ------- (None) > --- INVENTORY (5) ---- Mini Grenade Launcher Mace Mace Peak State ------------ > --- POWER ------------ (None) > --- PROPULSION ------- Flight Unit > --- UTILITY ---------- (None) > --- WEAPON ----------- Mini Grenade Launcher > --- INVENTORY -------- Mini Grenade Launcher Mace Mace [Rating: 3] Favorites ----------- Power None Propulsion Light Treads Treads Light Treads Flight Unit Flight Unit Utility None Weapon Mini Grenade Launcher Launcher Mini Grenade Launcher Impact Weapon Mace Build | -11 -10 -9 ------- Run | Jun Mat Mat Slots Evolved 2 | . . 2 Power . | . . . Propulsion . | . . . Utility 2 | . . 2 Weapon . | . . . Parts Attached 6 | 2 2 2 Power . | . . . Engine . | . . . Core . | . . . Reactor . | . . . Propulsion 3 | 2 1 . Treads 2 | 2 . . Leg . | . . . Wheel . | . . . Hover . | . . . Flight 1 | . 1 . Utility . | . . . Device . | . . . Storage . | . . . Processor . | . . . Hackware . | . . . Protection . | . . . Artifact . | . . . Weapon 3 | . 1 2 Energy Gun . | . . . Energy Cannon . | . . . Ballistic Gun . | . . . Ballistic Cannon . | . . . Launcher 2 | . 1 1 Special Weapon . | . . . Impact Weapon 1 | . . 1 Slashing Weapon . | . . . Piercing Weapon . | . . . Special Melee Weapon . | . . . Unidentified Prototypes . | . . . Parts Lost 2 | . . 2 Power . | . . . Propulsion 1 | . . 1 Utility . | . . . Weapon 1 | . . 1 Highest Loss Streak 2 | . . 2 To Critical Strikes . | . . . Average Slot Usage (%) 13 | . 20 3 Treads 5 | . 9 . Flight 6 | . 9 1 Naked Turns 42 | . 1 41 Heaviest Build 2 | . 1 2 Greatest Support 20 | 20 4 4 Greatest Overweight (x) . | . . . Average Overweight (x) . | . . . Largest Inventory Capacity 5 | 5 5 5 Average Capacity 5 | 5 5 5 Most Carried 4 | . 4 4 Average Carried 2 | . 3 3 Final Capacity 5 | 5 5 5 Final Carried 4 | . 4 3 Class Distribution -------------------- 100% | Mutant Dominant Class ---------------- Mutant | -10/Materials Mutant | -9/Materials Resources | -11 -10 -9 ----------- Run | Jun Mat Mat Matter Collected 148 | 134 . 14 Remotely . | . . . Salvage Created 20 | . 2 18 Parts 4 | . 2 2 Haulers Intercepted . | . . . Recyclers Shooed . | . . . Parts Field Recycled . | . . . Retrieved Matter . | . . . Parts Self-Destructed . | . . . Prevented . | . . . Kills | -11 -10 -9 ------- Run | Jun Mat Mat Combat Hostiles Destroyed 4 | . 1 3 Melee 1 | . . 1 AOE 2 | . 1 1 Classes Destroyed 1 | . 1 . Swarmer 4 | . 1 3 Best Kill Streak 2 | . 1 2 Combat Bots Only 2 | . 1 2 Max Kills in Single Turn 1 | . 1 1 Gunslinging . | . . . Exploded 1 | . 1 1 Melee 1 | . . 1 Uniques/NPCs Destroyed . | . . . Combat | -11 -10 -9 -------- Run | Jun Mat Mat Damage Taken 490 | . 20 470 Core 424 | . 20 404 Absorbed by Shields . | . . . Core Remaining (%) 96 | 100 92 . Volleys Fired 4 | . 1 3 Largest 1 | . 1 1 Hottest 30 | . 30 30 Shots Fired 4 | . 1 3 Gun . | . . . Cannon . | . . . Launcher 4 | . 1 3 Special . | . . . Kinetic . | . . . Thermal . | . . . Explosive 4 | . 1 3 Electromagnetic . | . . . Robot Hit Streak 2 | . . 2 Robot Miss Streak 1 | . . 1 Penetration Max . | . . . Secondary Targets . | . . . Shots Hit Robots 4 | . . 4 Core Hits 4 | . 1 3 Critical Kills . | . . . Critical Parts Destroyed . | . . . Critical Strikes . | . . . Melee Attacks 2 | . . 2 Impact 2 | . . 2 Slashing . | . . . Piercing . | . . . Sneak Attacks . | . . . Combat Hostiles . | . . . Follow-up Attacks . | . . . Damage Inflicted 307 | . 58 249 Guns . | . . . Cannons . | . . . Explosions 252 | . 58 194 Melee 55 | . . 55 Ramming . | . . . Kinetic . | . . . Thermal . | . . . Explosive 252 | . 58 194 Electromagnetic . | . . . Impact 55 | . . 55 Slashing . | . . . Piercing . | . . . Highest Corruption . | . . . Average Corruption . | . . . Corruption Purged . | . . . Corruption Blocked . | . . . Overload Shots . | . . . Overflow Damage 34 | . . 34 Projectiles . | . . . Explosions 12 | . . 12 Melee 22 | . . 22 Knockbacks 1 | . . 1 Impact 1 | . . 1 Kinetic . | . . . Secondary . | . . . Self-Inflicted Damage 14 | . . 14 Shots 1 | . . 1 Rammed . | . . . Targets Rammed . | . . . Kicked . | . . . Crushed . | . . . Highest Temperature 2 | . . 2 Average Temperature 2 | . . 2 Received Heat Transfer 105 | . 6 99 Siege Activations . | . . . Robots Corrupted . | . . . Combat Hostiles . | . . . Parts Fried . | . . . Impact Corruptions 1 | . . 1 Robots Melted . | . . . Combat Hostiles . | . . . Parts Melted . | . . . Heat Transferred . | . . . Parts Sabotaged . | . . . Parts Stolen . | . . . Parts Stripped . | . . . Power Chain Reactions . | . . . Missiles Intercepted . | . . . Alert | -11 -10 -9 ------- Run | Jun Mat Mat Peak Influence 191 | . 70 191 Initial 29 | . . 29 Average 45 | . 14 106 Maximum Alert Level . | . . . Low Security (%) 100 | 100 100 100 Level 1 . | . . . Level 2 . | . . . Level 3 . | . . . Level 4 . | . . . Level 5 . | . . . High Security . | . . . Max Security . | . . . Squads Dispatched 1 | . . 1 Investigation . | . . . Extermination . | . . . Reinforcement 1 | . . 1 Assault . | . . . Garrison . | . . . Intercept . | . . . Searches Triggered . | . . . Construction Impeded . | . . . Haulers Reinforced . | . . . Active Scanning Responses . | . . . Cargo Convoy Interrupts . | . . . Stealth | -11 -10 -9 --------- Run | Jun Mat Mat Distress Signals 2 | . 1 1 Communications Jammed . | . . . Distress Signals . | . . . Times Spotted 16 | . 5 11 Peak Tracking Total 9 | . 5 9 Tactical Retreats . | . . . Traps | -11 -10 -9 ------- Run | Jun Mat Mat Traps Triggered . | . . . Indirectly . | . . . Trap Hack Attempts . | . . . Triggered . | . . . Disarmed . | . . . Reprogrammed . | . . . Reused . | . . . Traps Extracted . | . . . Installed . | . . . Triggered . | . . . Machines | -11 -10 -9 ---------- Run | Jun Mat Mat Machines Disabled 2 | . . 2 Max in Single Turn 1 | . . 1 Machines Repaired . | . . . Machines Sabotaged . | . . . Overloaded Fab Kills . | . . . Hacking | -11 -10 -9 --------- Run | Jun Mat Mat Machines Accessed . | . . . Terminals . | . . . Fabricators . | . . . Repair Stations . | . . . Recycling Units . | . . . Scanalyzers . | . . . Garrison Access . | . . . Total Hacks . | . . . Successful . | . . . Failed . | . . . Catastrophic . | . . . Database Lockouts . | . . . Manual . | . . . Terminals . | . . . Fabricators . | . . . Repair Stations . | . . . Recycling Units . | . . . Scanalyzers . | . . . Garrison Access . | . . . Terminal Hacks . | . . . Fabricator Hacks . | . . . Repair Station Hacks . | . . . Recycling Unit Hacks . | . . . Scanalyzer . | . . . Garrison Access Hacks . | . . . Unauthorized Hacks . | . . . Terminals . | . . . Fabricators . | . . . Repair Stations . | . . . Recycling Units . | . . . Scanalyzers . | . . . Garrison Access . | . . . Data Cores Recovered . | . . . Used . | . . . Hacking Detections . | . . . Full Trace Events . | . . . Feedback Events . | . . . Feedback Blocked . | . . . Robot Schematics Acquired . | . . . Robots Built . | . . . Authchips . | . . . Time . | . . . Total Robot Build Rating . | . . . Part Schematics Acquired . | . . . Parts Built . | . . . Authchips . | . . . Time . | . . . Total Part Build Rating . | . . . Parts Repaired . | . . . Time . | . . . Parts Recycled . | . . . Recycled Matter . | . . . Retrieved Matter . | . . . Retrieved Components . | . . . Parts Scanalyzed . | . . . Part Schematics Acquired . | . . . Parts Damaged . | . . . Bothacking | -11 -10 -9 ------------ Run | Jun Mat Mat Used RIF Installer . | . . . Robots Hacked . | . . . Non-combat . | . . . Combat . | . . . Robot Hacks Applied . | . . . Relay Couplers Released . | . . . Fabnet Peak Effective % . | . . . Robots Rewired . | . . . Allies Hacked . | . . . Hacks Repelled . | . . . Allies | -11 -10 -9 -------- Run | Jun Mat Mat Total Allies . | . . . Largest Group . | . . . Highest-Rated Group . | . . . Highest-Rated Ally . | . . . Total Orders . | . . . Ally Attacks . | . . . Total Damage . | . . . Kills . | . . . Allies Corrupted . | . . . Allies Melted . | . . . Intel | -11 -10 -9 ------- Run | Jun Mat Mat Robot Analysis Total . | . . . Derelict Logs Recovered . | . . . Drone Launches . | . . . Drone Recoveries . | . . . Exploration | -11 -10 -9 ------------- Run | Jun Mat Mat Turns Passed 166 | 17 90 59 Spaces Moved 295 | 23 181 91 Core 150 | 21 46 83 Treads 2 | 2 . . Legs . | . . . Wheels . | . . . Hover . | . . . Flight 143 | . 135 8 Fastest Speed 40 | 50 40 40 Average Speed 45 | 59 42 49 Slowest Speed 160 | 160 50 50 Overloaded Moves . | . . . Propulsion Burnouts . | . . . Robots Hopped 1 | . 1 . Cave-ins Triggered . | . . . Exploration Rate (%) 17 | 4 34 14 Regions Visited 2 Branch Regions . Pre-discovered Areas . | . . . Known Exits Taken . | . . . Unknown Exits Taken 2 | 1 1 . Scrap Searched . | . . . Spaces Dug . | . . . Terrain Destroyed 11 | . 5 6 Melee . | . . . Projectile . | . . . AOE 11 | . 5 6 Terrain Rammed . | . . . Walls Destroyed . | . . . Machines Disabled . | . . . Actions | -11 -10 -9 --------- Run | Jun Mat Mat Total 315 | 24 192 99 Wait 3 | . 3 . Move 291 | 22 178 91 Hop 1 | . 1 . Pick Up 4 | . 4 . Fast Attach 3 | 2 1 . Attach 3 | . 1 2 Detach 2 | . 1 1 Swap . | . . . Drop 2 | . 2 . Fire 4 | . 1 3 Melee 2 | . . 2 Ram . | . . . Kick . | . . . Crush . | . . . Escape Stasis . | . . . Rewire . | . . . Trap . | . . . Miscellaneous . | . . . Route ------- -11/Junkyard -10/Materials -9/Materials History --------- Turn | Location | Event 4 | -11/Junkyard | Discovered new exit (range 15) 18 | -11/Junkyard | Entered Materials 104 | -10/Materials | Discovered new exit (range 8) 108 | -10/Materials | Entered another Materials area 108 | -9/Materials | Evolved 2 slots: Utility x2 148 | -9/Materials | Core integrity fell below 50% 153 | -9/Materials | Core integrity fell below 20% 167 | -9/Materials | Destroyed by Y-45 Defender with Heavy Assault Rifle Last Messages --------------- 00122_ O-16 Technician: "IFF HANDSHAKE FAILED. SECURING TERMINAL." 00123_ ALERT: Hostiles spotted, dispatching reinforcements to Terminal M004. 00132_ Terminal disabled. 00134_ Hadron Collector disabled. 00134_ S-10 Pest destroyed. 00134_ Destroyed Flight Unit. 00136_ Mni. Grenade Launcher destroyed. 00139_ G-34 Mercenary destroyed. 00140_ U-05 Engineer lays Concrete. 00159_ Destroyed Flight Unit. 00159_ S-10 Pest system corrupted by crushing effect. 00159_ S-10 Pest knocked back. 00160_ S-10 Pest system terminally corrupted. 00161_ S-10 Pest destroyed. 00164_ Acquired 14 matter. 00164_ U-05 Engineer lays Concrete. 00167_ Terminal disabled. 00167_ U-05 Engineer lays Concrete. 00167_ Y-45 Defender suffers critical hit (Burn). Map ----- +----------------------------------------------------+ | | | | | | | | | | | | | | | | | ???????????????????????????????????? | | ???????????????????????????????????? | | ???????????????????????????????????? | | ???????????????????????????????????? | | ???????????????????????????????????? | | ???????????????????????????????????? | | ???????????????????????????????????? | | #????????????????########??????????? | | #????????????????# #??????????? | | #????????????????# """#??????????? | | #????????????????# """#??????????? | | #????????#???????# """####???????? | | #??????? #???????# """# #???""??? | | #?????? ????????# [ * # #??"""?#? | | #????? ???????####### # +? """ ?? | | #####+########## YY # #? | | gg # #? | | ug @ ######?? | | a %Y u ## ? | | #####+######## " "# """ # | | ??? ?????# T# """ # | | ? ""???# # """ # | | """"?# """ ## # | | "" """"?+ # """ # | | S"" ?# + """ # | | "" # ###### """ # | | ############## ####+###????# # | | ?????????????# #??T ??????# """ # | | ?????????????# #?? ??????# """ # | | ?????????????# #?? ??????# """ # | | ????????????? ?? ""?????# # | | ????????????? ?? ""?????#######? | | ????????????? ??? "?????????????? | | ????????????? ??????????????????? | | ?????????????# ???????????????????? | | ???????????????????????????????????? | | ???????????????????????????????????? | | ???????????????????????????????????? | | ???????????????????????????????????? | | ???????????????????????????????????? | | ???????????????????????????????????? | | ???????????????????????????????????? | +----------------------------------------------------+ Best States ------------- Heat Dissipation 28 Energy Generation 5 Energy Capacity 100 Matter Stores 214 Matter Capacity 300 Sight Range 16 Terrain Scan Density 10 Evasion (%) 62 Item Schematics ----------------- None Robot Schematics ------------------ None Fabricated ------------ Nothing Alien Tech Used ----------------- None Achievements -------------- None Challenges ------------ None Game ------ Seed GammaKineticCapacitor Manual? 0 Play Time 00:02:56 Cumulative 151.0 hours Start 2023.04.26 @ 23:13:59 End 2023.04.26 @ 23:16:02 Sessions 1 Manual Loads 0 Difficulty Rogue Special Mode None Game No. 441 Rogue 441 Adventurer 0 Explorer 0 Win Type - Total 7 Types 6/0/0/1/0/0/0/0/0 Lore% 66 Gallery% 71 Achievement% 61 Wizard Run 0 Options --------- ASCII 0 Keyboard 0 Movement Mouse Keybinds 0 Fullscreen 1 Font 16/SmallcapsGlow Map View 75x55 Tactical HUD 1 Map Filters NONE Filters NONE Steam 1 RUN: fd4e5b2b-1e27-4d94-8c37-954e1c2ca76c